[Event "Late-Titled-Tuesday-Blitz-March-19-2024"]
[Site "Chess.com"]
[Date "2024.03.19"]
[Round "2"]
[White "tylityli"]
[Black "Koalaskakistis"]
[Result "1-0"]
[WhiteElo "2319"]
[BlackElo "2515"]
[TimeControl "180+1"]
[EndTime "14:17:51 PDT"]
[Termination "tylityli won on time"]

1. d4 {[%clk 0:03:00.9]} 1... f5 {[%clk 0:02:53.7]} 2. c4 {[%clk 0:02:57.4]}
2... Nf6 {[%clk 0:02:52]} 3. Nc3 {[%clk 0:02:57.1]} 3... g6 {[%clk 0:02:52.5]}
4. b4 {[%clk 0:02:56.4]} 4... Bg7 {[%clk 0:02:53.1]} 5. Bb2 {[%clk 0:02:57]}
5... d6 {[%clk 0:02:53.2]} 6. e3 {[%clk 0:02:56.3]} 6... O-O {[%clk 0:02:52.5]}
7. Nf3 {[%clk 0:02:56.5]} 7... Nbd7 {[%clk 0:02:52.7]} 8. d5 {[%clk 0:02:56]}
8... Ne4 {[%clk 0:02:39.4]} 9. Qc2 {[%clk 0:02:53.2]} 9... Ndf6 {[%clk
0:02:24.7]} 10. Bd3 {[%clk 0:02:51.5]} 10... Nxc3 {[%clk 0:02:16.8]} 11. Bxc3
{[%clk 0:02:48.5]} 11... e5 {[%clk 0:02:13.8]} 12. dxe6 {[%clk 0:02:46.7]} 12...
Bxe6 {[%clk 0:02:14]} 13. O-O {[%clk 0:02:45.5]} 13... Qd7 {[%clk 0:02:04.3]}
14. Ng5 {[%clk 0:02:37.5]} 14... Rae8 {[%clk 0:01:56.3]} 15. Nxe6 {[%clk
0:02:35.6]} 15... Qxe6 {[%clk 0:01:54.3]} 16. Bxf6 {[%clk 0:02:21.1]} 16... Bxf6
{[%clk 0:01:52.3]} 17. Rad1 {[%clk 0:02:20.5]} 17... c6 {[%clk 0:01:49.2]} 18.
Be2 {[%clk 0:02:14.9]} 18... Rd8 {[%clk 0:01:48.6]} 19. Bf3 {[%clk 0:02:09.9]}
19... g5 {[%clk 0:01:32.8]} 20. h3 {[%clk 0:02:09.1]} 20... Be5 {[%clk 0:01:14]}
21. e4 {[%clk 0:02:04.6]} 21... Qf7 {[%clk 0:00:55]} 22. exf5 {[%clk 0:01:59.3]}
22... h5 {[%clk 0:00:53.5]} 23. Be4 {[%clk 0:01:17.2]} 23... Qf6 {[%clk
0:00:45.2]} 24. Qe2 {[%clk 0:01:14]} 24... Qh6 {[%clk 0:00:33.8]} 25. g3 {[%clk
0:01:01.6]} 25... Rf7 {[%clk 0:00:26]} 26. Kg2 {[%clk 0:01:00.3]} 26... h4
{[%clk 0:00:22]} 27. Qg4 {[%clk 0:00:58.2]} 27... Bf6 {[%clk 0:00:14.4]} 28.
gxh4 {[%clk 0:00:55.9]} 28... Rg7 {[%clk 0:00:14.7]} 29. h5 {[%clk 0:00:55.4]}
29... Re8 {[%clk 0:00:14.4]} 30. Rfe1 {[%clk 0:00:49.4]} 30... Be5 {[%clk
0:00:13]} 31. Bf3 {[%clk 0:00:46.2]} 31... Rf8 {[%clk 0:00:11.3]} 32. c5 {[%clk
0:00:45.3]} 32... d5 {[%clk 0:00:10.7]} 33. Rxe5 {[%clk 0:00:44.3]} 33... Qf6
{[%clk 0:00:11.6]} 34. Rde1 {[%clk 0:00:43.2]} 34... b6 {[%clk 0:00:04.6]} 35.
Re6 {[%clk 0:00:38.1]} 35... Qc3 {[%clk 0:00:03.9]} 36. Re7 {[%clk 0:00:29.4]}
1-0

[Event "Late-Titled-Tuesday-Blitz-March-19-2024"]
[Site "Chess.com"]
[Date "2024.03.19"]
[Round "2"]
[White "FairChess_on_YouTube"]
[Black "FontVella8"]
[Result "1-0"]
[WhiteElo "3149"]
[BlackElo "2683"]
[TimeControl "180+1"]
[EndTime "14:17:55 PDT"]
[Termination "FairChess_on_YouTube won on time"]

1. Nf3 {[%clk 0:03:00.9]} 1... Nf6 {[%clk 0:02:59.8]} 2. c4 {[%clk 0:03:00.2]}
2... e6 {[%clk 0:03:00.1]} 3. g3 {[%clk 0:02:59.5]} 3... d5 {[%clk 0:03:00.6]}
4. Bg2 {[%clk 0:02:59]} 4... dxc4 {[%clk 0:02:59.3]} 5. O-O {[%clk 0:02:58.8]}
5... Nbd7 {[%clk 0:02:57.5]} 6. Qc2 {[%clk 0:02:56.3]} 6... c5 {[%clk
0:02:53.8]} 7. a4 {[%clk 0:02:53.5]} 7... Rb8 {[%clk 0:02:46]} 8. Na3 {[%clk
0:02:48.6]} 8... b6 {[%clk 0:02:42.9]} 9. Nxc4 {[%clk 0:02:48.4]} 9... Bb7
{[%clk 0:02:42.5]} 10. d3 {[%clk 0:02:48.7]} 10... Nd5 {[%clk 0:02:41.2]} 11.
Bg5 {[%clk 0:02:45.3]} 11... Qc7 {[%clk 0:02:26.2]} 12. e4 {[%clk 0:02:45.3]}
12... Nb4 {[%clk 0:02:26.4]} 13. Qc3 {[%clk 0:02:45.1]} 13... f6 {[%clk
0:02:20.7]} 14. Be3 {[%clk 0:02:36.3]} 14... e5 {[%clk 0:02:16.4]} 15. Bh3
{[%clk 0:02:30.2]} 15... Be7 {[%clk 0:02:15]} 16. Nh4 {[%clk 0:02:18.2]} 16...
g6 {[%clk 0:02:02]} 17. f4 {[%clk 0:02:17.3]} 17... O-O {[%clk 0:01:30.4]} 18.
Be6+ {[%clk 0:02:14.8]} 18... Kg7 {[%clk 0:01:28]} 19. Rf2 {[%clk 0:01:54]}
19... Rbd8 {[%clk 0:01:26.4]} 20. Raf1 {[%clk 0:01:53]} 20... exf4 {[%clk
0:01:22.5]} 21. Bxf4 {[%clk 0:01:49]} 21... Qc6 {[%clk 0:01:22.5]} 22. Bd6
{[%clk 0:01:29.4]} 22... Rde8 {[%clk 0:00:45.7]} 23. Bxe7 {[%clk 0:01:20]} 23...
Rxe7 {[%clk 0:00:44.7]} 24. Bxd7 {[%clk 0:01:20.5]} 24... Rxd7 {[%clk
0:00:43.4]} 25. Ne5 {[%clk 0:01:20.3]} 25... Rxd3 {[%clk 0:00:32.9]} 26. Nxc6
{[%clk 0:01:09.6]} 26... Rxc3 {[%clk 0:00:32.9]} 27. Nxb4 {[%clk 0:01:10.1]}
27... Re3 {[%clk 0:00:26.4]} 28. Nd5 {[%clk 0:01:10]} 28... Bxd5 {[%clk
0:00:13.1]} 29. exd5 {[%clk 0:01:10.9]} 29... f5 {[%clk 0:00:13.8]} 30. Ng2
{[%clk 0:01:08.7]} 30... Re4 {[%clk 0:00:11.9]} 31. Rf4 {[%clk 0:01:08.2]} 31...
Re5 {[%clk 0:00:07.5]} 32. g4 {[%clk 0:01:06.5]} 32... Rxd5 {[%clk 0:00:05.9]}
33. gxf5 {[%clk 0:01:06.8]} 33... Rdxf5 {[%clk 0:00:04.7]} 34. Rxf5 {[%clk
0:01:06.7]} 34... gxf5 {[%clk 0:00:05.6]} 35. Kf2 {[%clk 0:01:05.4]} 35... Rd8
{[%clk 0:00:05.2]} 36. Ke3 {[%clk 0:01:03.9]} 36... Rd4 {[%clk 0:00:05.8]} 37.
Rf4 {[%clk 0:00:59.9]} 37... Rd5 {[%clk 0:00:06.2]} 38. Rh4 {[%clk 0:00:58.5]}
38... a6 {[%clk 0:00:04.7]} 39. Nf4 {[%clk 0:00:58.3]} 39... Re5+ {[%clk
0:00:05]} 40. Kf3 {[%clk 0:00:58.9]} 40... b5 {[%clk 0:00:05.4]} 41. a5 {[%clk
0:00:59]} 41... c4 {[%clk 0:00:05.3]} 42. Ne2 {[%clk 0:00:58.8]} 42... Kf6
{[%clk 0:00:04.5]} 43. Rh6+ {[%clk 0:00:57.6]} 43... Kg5 {[%clk 0:00:04.4]} 44.
Rxa6 {[%clk 0:00:58.3]} 44... b4 {[%clk 0:00:04.9]} 45. Ra8 {[%clk 0:00:57]}
45... Rb5 {[%clk 0:00:03.2]} 46. a6 {[%clk 0:00:57.1]} 46... c3 {[%clk
0:00:03.8]} 47. bxc3 {[%clk 0:00:52.7]} 47... b3 {[%clk 0:00:02.3]} 48. a7
{[%clk 0:00:53.1]} 48... Ra5 {[%clk 0:00:01.8]} 49. Rg8+ {[%clk 0:00:52.3]} 1-0

[Event "Late-Titled-Tuesday-Blitz-March-19-2024"]
[Site "Chess.com"]
[Date "2024.03.19"]
[Round "2"]
[White "GlavkonVVS"]
[Black "kriscacco"]
[Result "0-1"]
[WhiteElo "2681"]
[BlackElo "2110"]
[TimeControl "180+1"]
[EndTime "14:17:55 PDT"]
[Termination "kriscacco won on time"]

1. c4 {[%clk 0:03:00.9]} 1... g6 {[%clk 0:02:59.2]} 2. Nc3 {[%clk 0:03:01]} 2...
Bg7 {[%clk 0:02:58.9]} 3. Nf3 {[%clk 0:03:01.6]} 3... Nf6 {[%clk 0:02:57]} 4. d4
{[%clk 0:03:01.7]} 4... c5 {[%clk 0:02:53.9]} 5. d5 {[%clk 0:03:00.9]} 5... d6
{[%clk 0:02:53.6]} 6. e4 {[%clk 0:02:56.9]} 6... O-O {[%clk 0:02:53.8]} 7. h3
{[%clk 0:02:55.9]} 7... Na6 {[%clk 0:02:53.6]} 8. Bd3 {[%clk 0:02:54.6]} 8...
Nc7 {[%clk 0:02:52.9]} 9. O-O {[%clk 0:02:54.5]} 9... a6 {[%clk 0:02:53.1]} 10.
a4 {[%clk 0:02:54.5]} 10... b6 {[%clk 0:02:52.9]} 11. Bf4 {[%clk 0:02:51.8]}
11... Nd7 {[%clk 0:02:52.6]} 12. Re1 {[%clk 0:02:50.7]} 12... f6 {[%clk
0:02:51.2]} 13. Nd2 {[%clk 0:02:39.3]} 13... Ne5 {[%clk 0:02:48]} 14. Bf1 {[%clk
0:02:38.7]} 14... Nf7 {[%clk 0:02:47]} 15. Be3 {[%clk 0:02:33.4]} 15... Bd7
{[%clk 0:02:45.3]} 16. Rb1 {[%clk 0:02:24.8]} 16... a5 {[%clk 0:02:42.7]} 17.
Qc2 {[%clk 0:02:20.6]} 17... e5 {[%clk 0:02:40.7]} 18. Nb5 {[%clk 0:02:13]}
18... Nxb5 {[%clk 0:02:34.6]} 19. cxb5 {[%clk 0:02:12.5]} 19... Qc7 {[%clk
0:02:29.8]} 20. Nc4 {[%clk 0:02:12.4]} 20... f5 {[%clk 0:02:27.2]} 21. exf5
{[%clk 0:01:57.7]} 21... gxf5 {[%clk 0:02:26.4]} 22. f4 {[%clk 0:01:57.8]} 22...
e4 {[%clk 0:02:25.5]} 23. Qd2 {[%clk 0:01:50.1]} 23... Nh6 {[%clk 0:02:23.1]}
24. Be2 {[%clk 0:01:46]} 24... Kh8 {[%clk 0:02:22.1]} 25. Kh2 {[%clk 0:01:45.6]}
25... Be8 {[%clk 0:02:16.8]} 26. Rg1 {[%clk 0:01:44.2]} 26... Bf7 {[%clk
0:02:15.1]} 27. Rbd1 {[%clk 0:01:43.6]} 27... Ng8 {[%clk 0:02:12.3]} 28. g4
{[%clk 0:01:42]} 28... fxg4 {[%clk 0:02:11.3]} 29. hxg4 {[%clk 0:01:41.8]} 29...
Ne7 {[%clk 0:02:08.5]} 30. Rg3 {[%clk 0:01:39.3]} 30... Rad8 {[%clk 0:02:04.8]}
31. Rh3 {[%clk 0:01:33.8]} 31... Qb7 {[%clk 0:02:04.2]} 32. Rh1 {[%clk
0:01:29.2]} 32... Bg8 {[%clk 0:01:57.4]} 33. Kg2 {[%clk 0:01:28.4]} 33... Nxd5
{[%clk 0:01:52.2]} 34. Rh5 {[%clk 0:01:11.9]} 34... Nxe3+ {[%clk 0:01:44.4]} 35.
Qxe3 {[%clk 0:01:11.6]} 35... d5 {[%clk 0:01:44.2]} 36. Qh3 {[%clk 0:01:07.8]}
36... Bd4 {[%clk 0:01:37.2]} 37. Nxb6 {[%clk 0:01:02.2]} 37... Rxf4 {[%clk
0:01:29.5]} 38. Qh4 {[%clk 0:00:54.4]} 38... Rdf8 {[%clk 0:01:22.8]} 39. Qg5
{[%clk 0:00:16.4]} 39... Rf2+ {[%clk 0:01:12.4]} 40. Kh3 {[%clk 0:00:16.8]}
40... Rxe2 {[%clk 0:01:09.5]} 41. Rh6 {[%clk 0:00:10.4]} 41... Qg7 {[%clk
0:01:00.3]} 42. Qxg7+ {[%clk 0:00:07.6]} 42... Kxg7 {[%clk 0:00:59.7]} 43. g5
{[%clk 0:00:04.7]} 43... Rf3+ {[%clk 0:00:54.9]} 44. Kg4 {[%clk 0:00:04.9]}
44... c4 {[%clk 0:00:53.9]} 45. Nxd5 {[%clk 0:00:01.9]} 45... Rg2+ {[%clk
0:00:53.7]} 0-1

[Event "Late-Titled-Tuesday-Blitz-March-19-2024"]
[Site "Chess.com"]
[Date "2024.03.19"]
[Round "2"]
[White "albi1999"]
[Black "Onischuk_V"]
[Result "0-1"]
[WhiteElo "2579"]
[BlackElo "2803"]
[TimeControl "180+1"]
[EndTime "14:17:58 PDT"]
[Termination "Onischuk_V won on time"]

1. Nf3 {[%clk 0:02:59.5]} 1... g6 {[%clk 0:02:59.6]} 2. g3 {[%clk 0:02:58]} 2...
Bg7 {[%clk 0:03:00.2]} 3. Bg2 {[%clk 0:02:57.3]} 3... Nf6 {[%clk 0:03:00.5]} 4.
O-O {[%clk 0:02:56.9]} 4... O-O {[%clk 0:03:00.8]} 5. d4 {[%clk 0:02:56.9]} 5...
d6 {[%clk 0:03:00.4]} 6. Nc3 {[%clk 0:02:55.5]} 6... Nbd7 {[%clk 0:02:58.5]} 7.
e4 {[%clk 0:02:55.1]} 7... e5 {[%clk 0:02:58.8]} 8. h3 {[%clk 0:02:54.8]} 8...
Re8 {[%clk 0:02:55.8]} 9. dxe5 {[%clk 0:02:52.6]} 9... dxe5 {[%clk 0:02:55.6]}
10. Be3 {[%clk 0:02:52.1]} 10... c6 {[%clk 0:02:55.5]} 11. a4 {[%clk 0:02:50.9]}
11... Qe7 {[%clk 0:02:55.6]} 12. Nd2 {[%clk 0:02:46.8]} 12... Nc5 {[%clk
0:02:54.8]} 13. Nb3 {[%clk 0:02:33]} 13... Nxb3 {[%clk 0:02:51.8]} 14. cxb3
{[%clk 0:02:33.9]} 14... Be6 {[%clk 0:02:48.7]} 15. Qc2 {[%clk 0:02:33.1]} 15...
Nd7 {[%clk 0:02:47.5]} 16. a5 {[%clk 0:02:25.5]} 16... Red8 {[%clk 0:02:05.5]}
17. Na4 {[%clk 0:01:57.3]} 17... Qb4 {[%clk 0:01:58.2]} 18. Ra3 {[%clk
0:01:48.5]} 18... Bf8 {[%clk 0:01:57.7]} 19. Bd2 {[%clk 0:01:39]} 19... Qb5
{[%clk 0:01:56.8]} 20. Rb1 {[%clk 0:00:22.8]} 20... Bxa3 {[%clk 0:01:18.4]} 21.
bxa3 {[%clk 0:00:23.7]} 21... Qe2 {[%clk 0:01:18.2]} 22. Bf1 {[%clk 0:00:15.8]}
22... Qh5 {[%clk 0:01:17.9]} 23. Kh2 {[%clk 0:00:12.4]} 23... Nf6 {[%clk
0:01:00.6]} 24. Nc5 {[%clk 0:00:12.2]} 24... Bg4 {[%clk 0:00:49]} 25. Be3 {[%clk
0:00:08.6]} 25... Bf3 {[%clk 0:00:45.9]} 26. Nxb7 {[%clk 0:00:07.2]} 26... Ng4+
{[%clk 0:00:44.2]} 27. Kg1 {[%clk 0:00:06.9]} 27... Nxe3 {[%clk 0:00:43.8]} 28.
fxe3 {[%clk 0:00:07.8]} 28... Rd1 {[%clk 0:00:20.1]} 29. Rxd1 {[%clk 0:00:07.4]}
29... Bxd1 {[%clk 0:00:20.1]} 30. Qxc6 {[%clk 0:00:08]} 30... Rf8 {[%clk
0:00:20.5]} 31. Nc5 {[%clk 0:00:05.1]} 31... Qf3 {[%clk 0:00:19.9]} 32. Nd7
{[%clk 0:00:04]} 32... Qxe3+ {[%clk 0:00:19.4]} 33. Kh2 {[%clk 0:00:03.6]} 33...
Qf2+ {[%clk 0:00:19.3]} 34. Bg2 {[%clk 0:00:03.9]} 34... Bf3 {[%clk 0:00:18.6]}
0-1

[Event "Late-Titled-Tuesday-Blitz-March-19-2024"]
[Site "Chess.com"]
[Date "2024.03.19"]
[Round "2"]
[White "Vse_po_kaify"]
[Black "expii"]
[Result "0-1"]
[WhiteElo "2475"]
[BlackElo "2205"]
[TimeControl "180+1"]
[EndTime "14:18:00 PDT"]
[Termination "expii won by resignation"]

1. Nf3 {[%clk 0:02:58.1]} 1... d5 {[%clk 0:02:59.7]} 2. e3 {[%clk 0:02:57.9]}
2... Nf6 {[%clk 0:02:59.1]} 3. c4 {[%clk 0:02:58.3]} 3... e6 {[%clk 0:02:58]} 4.
b3 {[%clk 0:02:58.5]} 4... c5 {[%clk 0:02:57.1]} 5. Bb2 {[%clk 0:02:57.3]} 5...
Nc6 {[%clk 0:02:57.5]} 6. cxd5 {[%clk 0:02:54.6]} 6... exd5 {[%clk 0:02:57.1]}
7. d4 {[%clk 0:02:54.3]} 7... Be7 {[%clk 0:02:55.1]} 8. Bb5 {[%clk 0:02:50.4]}
8... O-O {[%clk 0:02:52.6]} 9. O-O {[%clk 0:02:49.4]} 9... a6 {[%clk 0:02:52]}
10. Bxc6 {[%clk 0:02:47.2]} 10... bxc6 {[%clk 0:02:52.9]} 11. dxc5 {[%clk
0:02:47.1]} 11... Bxc5 {[%clk 0:02:52.3]} 12. Qc2 {[%clk 0:02:40]} 12... Be7
{[%clk 0:02:44.4]} 13. Ne5 {[%clk 0:02:11.8]} 13... Bd7 {[%clk 0:02:36.9]} 14.
Nxc6 {[%clk 0:02:08.9]} 14... Rc8 {[%clk 0:02:26.1]} 15. Nxe7+ {[%clk
0:02:07.3]} 15... Qxe7 {[%clk 0:02:24.2]} 16. Qd3 {[%clk 0:02:07.5]} 16... Bb5
{[%clk 0:02:20]} 17. Qd4 {[%clk 0:01:29.5]} 17... Bxf1 {[%clk 0:02:20.9]} 18.
Ba3 {[%clk 0:01:29.3]} 18... Qc7 {[%clk 0:02:04.1]} 19. Bxf8 {[%clk 0:01:28.6]}
19... Qc1 {[%clk 0:02:01]} 20. Nd2 {[%clk 0:01:26]} 20... Be2+ {[%clk
0:02:00.7]} 21. Nf1 {[%clk 0:01:19.4]} 21... Kxf8 {[%clk 0:01:25.3]} 22. Rxc1
{[%clk 0:01:14]} 22... Rxc1 {[%clk 0:01:26.2]} 23. Qb4+ {[%clk 0:00:55.7]} 23...
Ke8 {[%clk 0:01:25.5]} 24. Qb8+ {[%clk 0:00:41]} 24... Ke7 {[%clk 0:01:15.5]}
25. Qe5+ {[%clk 0:00:36.8]} 25... Kd7 {[%clk 0:01:05.4]} 26. h3 {[%clk 0:00:36]}
26... Bxf1 {[%clk 0:01:02.2]} 27. Kh2 {[%clk 0:00:35.5]} 27... Bb5 {[%clk
0:01:00.4]} 28. Qg5 {[%clk 0:00:33.2]} 28... Ke7 {[%clk 0:00:57.3]} 29. Qxg7
{[%clk 0:00:32]} 29... Rc2 {[%clk 0:00:55.2]} 30. Qg5 {[%clk 0:00:26.3]} 30...
Ke6 {[%clk 0:00:54.1]} 31. f4 {[%clk 0:00:21]} 31... Ne4 {[%clk 0:00:51.2]} 32.
Qe5+ {[%clk 0:00:20.4]} 32... Kd7 {[%clk 0:00:47.9]} 33. Qxd5+ {[%clk
0:00:20.7]} 33... Nd6 {[%clk 0:00:48.4]} 34. Qd1 {[%clk 0:00:06.9]} 34... Rxa2
{[%clk 0:00:42.4]} 35. e4 {[%clk 0:00:04.7]} 35... Bc6 {[%clk 0:00:36.2]} 36.
Kg3 {[%clk 0:00:04.9]} 36... Bxe4 {[%clk 0:00:34.7]} 37. Kh4 {[%clk 0:00:05.4]}
37... Rxg2 {[%clk 0:00:33.5]} 38. Qf1 {[%clk 0:00:05.3]} 38... Nf5+ {[%clk
0:00:32.3]} 39. Kh5 {[%clk 0:00:05.3]} 39... Ng3+ {[%clk 0:00:32.5]} 40. Kh6
{[%clk 0:00:04.3]} 40... Nxf1 {[%clk 0:00:33.4]} 0-1

[Event "Late-Titled-Tuesday-Blitz-March-19-2024"]
[Site "Chess.com"]
[Date "2024.03.19"]
[Round "2"]
[White "rhungaski"]
[Black "Legendinunknown"]
[Result "1-0"]
[WhiteElo "2613"]
[BlackElo "2828"]
[TimeControl "180+1"]
[EndTime "14:18:05 PDT"]
[Termination "rhungaski won on time"]

1. e4 {[%clk 0:03:00.9]} 1... e5 {[%clk 0:02:58.1]} 2. Nf3 {[%clk 0:03:00.4]}
2... Nc6 {[%clk 0:02:55.5]} 3. Nc3 {[%clk 0:03:00.7]} 3... Nf6 {[%clk
0:02:54.9]} 4. d4 {[%clk 0:03:01]} 4... exd4 {[%clk 0:02:54.3]} 5. Nxd4 {[%clk
0:03:01.9]} 5... Bc5 {[%clk 0:02:53.5]} 6. Nxc6 {[%clk 0:02:59.1]} 6... bxc6
{[%clk 0:02:52.8]} 7. Bd3 {[%clk 0:02:59.2]} 7... O-O {[%clk 0:02:52.1]} 8. O-O
{[%clk 0:02:54.7]} 8... Re8 {[%clk 0:02:51.7]} 9. Bg5 {[%clk 0:02:48.3]} 9...
Rb8 {[%clk 0:02:51.1]} 10. Na4 {[%clk 0:02:43.4]} 10... Be7 {[%clk 0:02:47.8]}
11. e5 {[%clk 0:02:37.6]} 11... Nd5 {[%clk 0:02:45.7]} 12. Bxe7 {[%clk
0:01:52.8]} 12... Qxe7 {[%clk 0:02:46.6]} 13. c4 {[%clk 0:01:27.5]} 13... Nf4
{[%clk 0:02:41.6]} 14. Re1 {[%clk 0:01:16]} 14... Qg5 {[%clk 0:02:37.5]} 15. g3
{[%clk 0:00:59.7]} 15... Ng6 {[%clk 0:01:15.5]} 16. Bxg6 {[%clk 0:00:54.5]}
16... Qxg6 {[%clk 0:01:14.1]} 17. Qd4 {[%clk 0:00:49]} 17... a6 {[%clk
0:01:09.1]} 18. b3 {[%clk 0:00:45.6]} 18... Rd8 {[%clk 0:01:02.9]} 19. Nc3
{[%clk 0:00:40.5]} 19... d6 {[%clk 0:01:01.7]} 20. exd6 {[%clk 0:00:40]} 20...
cxd6 {[%clk 0:01:01.1]} 21. Qa7 {[%clk 0:00:25.5]} 21... Rb7 {[%clk 0:00:53.3]}
22. Qxa6 {[%clk 0:00:26]} 22... Qd3 {[%clk 0:00:46.2]} 23. Re3 {[%clk
0:00:22.7]} 23... Qd4 {[%clk 0:00:44]} 24. Rae1 {[%clk 0:00:19.3]} 24... Rf8
{[%clk 0:00:37.6]} 25. Qxc6 {[%clk 0:00:19.4]} 25... Rb6 {[%clk 0:00:34.3]} 26.
Qd5 {[%clk 0:00:19.5]} 26... Qg4 {[%clk 0:00:32.9]} 27. Qf3 {[%clk 0:00:19.3]}
27... Qg5 {[%clk 0:00:28.3]} 28. Nd5 {[%clk 0:00:19.2]} 28... Rb8 {[%clk
0:00:26.5]} 29. Ne7+ {[%clk 0:00:19.4]} 29... Kh8 {[%clk 0:00:27.2]} 30. Qd5
{[%clk 0:00:19.2]} 30... Qxd5 {[%clk 0:00:22.9]} 31. Nxd5 {[%clk 0:00:19.4]}
31... Bb7 {[%clk 0:00:21.9]} 32. Nc3 {[%clk 0:00:19]} 32... Bc6 {[%clk
0:00:20.5]} 33. Rd1 {[%clk 0:00:19]} 33... Rfd8 {[%clk 0:00:20.2]} 34. f3 {[%clk
0:00:19.2]} 34... Rd7 {[%clk 0:00:19.2]} 35. Red3 {[%clk 0:00:19.5]} 35... Rbd8
{[%clk 0:00:19.9]} 36. Kf2 {[%clk 0:00:20]} 36... Kg8 {[%clk 0:00:20.3]} 37.
R1d2 {[%clk 0:00:20.4]} 37... f6 {[%clk 0:00:20.7]} 38. h4 {[%clk 0:00:20.2]}
1-0

[Event "Late-Titled-Tuesday-Blitz-March-19-2024"]
[Site "Chess.com"]
[Date "2024.03.19"]
[Round "2"]
[White "Supelyel"]
[Black "Airquake"]
[Result "0-1"]
[WhiteElo "2395"]
[BlackElo "2647"]
[TimeControl "180+1"]
[EndTime "14:18:06 PDT"]
[Termination "Airquake won by resignation"]

1. c4 {[%clk 0:02:56]} 1... f6 {[%clk 0:03:00.9]} 2. Nc3 {[%clk 0:02:53]} 2...
Kf7 {[%clk 0:03:01.8]} 3. g3 {[%clk 0:02:52.1]} 3... g6 {[%clk 0:03:01.9]} 4.
Bg2 {[%clk 0:02:52]} 4... Kg7 {[%clk 0:03:02.8]} 5. Nf3 {[%clk 0:02:52.1]} 5...
e5 {[%clk 0:03:00.7]} 6. O-O {[%clk 0:02:51.5]} 6... Ne7 {[%clk 0:03:01.2]} 7.
d3 {[%clk 0:02:51.3]} 7... d6 {[%clk 0:03:01.7]} 8. Rb1 {[%clk 0:02:51.4]} 8...
Nbc6 {[%clk 0:03:02.2]} 9. b4 {[%clk 0:02:51.7]} 9... Be6 {[%clk 0:03:02.1]} 10.
b5 {[%clk 0:02:51.8]} 10... Nb8 {[%clk 0:02:55.3]} 11. Nd2 {[%clk 0:02:40.4]}
11... c6 {[%clk 0:02:36.6]} 12. bxc6 {[%clk 0:02:36.5]} 12... bxc6 {[%clk
0:02:37.5]} 13. Ba3 {[%clk 0:02:33.7]} 13... Qc7 {[%clk 0:02:30.4]} 14. Nb5
{[%clk 0:02:17.9]} 14... cxb5 {[%clk 0:02:30.7]} 15. Bxa8 {[%clk 0:02:16.8]}
15... bxc4 {[%clk 0:02:31.6]} 16. dxc4 {[%clk 0:02:02.9]} 16... Nd7 {[%clk
0:02:12.4]} 17. Bg2 {[%clk 0:01:55.7]} 17... Nc6 {[%clk 0:02:05.1]} 18. Qa4
{[%clk 0:01:47.9]} 18... Nd4 {[%clk 0:02:04.9]} 19. e3 {[%clk 0:01:38.2]} 19...
Ne2+ {[%clk 0:01:53.8]} 20. Kh1 {[%clk 0:01:38.2]} 20... Nc3 {[%clk 0:01:54.7]}
21. Qa6 {[%clk 0:01:31.5]} 21... Nxb1 {[%clk 0:01:52]} 22. Rxb1 {[%clk
0:01:32.4]} 22... Nb6 {[%clk 0:01:47.8]} 23. Ne4 {[%clk 0:01:24]} 23... Bxc4
{[%clk 0:01:45.5]} 24. Qa5 {[%clk 0:01:18.4]} 24... d5 {[%clk 0:01:45.1]} 25.
Bxf8+ {[%clk 0:00:48.6]} 25... Rxf8 {[%clk 0:01:46]} 26. Nc5 {[%clk 0:00:48.7]}
26... Re8 {[%clk 0:01:22.8]} 27. Na4 {[%clk 0:00:29.3]} 27... Bxa2 {[%clk
0:01:06.3]} 28. Ra1 {[%clk 0:00:20.2]} 28... Bc4 {[%clk 0:01:02.7]} 29. Rb1
{[%clk 0:00:20]} 29... Re7 {[%clk 0:00:58.7]} 30. Nxb6 {[%clk 0:00:19.6]} 30...
axb6 {[%clk 0:00:59.6]} 31. Rxb6 {[%clk 0:00:19.2]} 31... Bd3 {[%clk 0:00:36.7]}
32. h4 {[%clk 0:00:19]} 32... Re6 {[%clk 0:00:36.5]} 33. Rb5 {[%clk 0:00:16.3]}
33... Qc1+ {[%clk 0:00:36.5]} 34. Kh2 {[%clk 0:00:15.5]} 34... Bxb5 {[%clk
0:00:37.1]} 35. Qxb5 {[%clk 0:00:16.3]} 35... Qc6 {[%clk 0:00:34.7]} 36. Qxd5
{[%clk 0:00:15.3]} 36... Qxd5 {[%clk 0:00:34.9]} 37. Bxd5 {[%clk 0:00:16.2]}
37... Rb6 {[%clk 0:00:35.5]} 38. e4 {[%clk 0:00:16.7]} 38... f5 {[%clk
0:00:35.7]} 39. Kg2 {[%clk 0:00:17.6]} 39... Kf6 {[%clk 0:00:36.1]} 40. Kg1
{[%clk 0:00:17.4]} 40... Rb4 {[%clk 0:00:35.6]} 41. Kg2 {[%clk 0:00:18]} 41...
fxe4 {[%clk 0:00:35.7]} 42. g4 {[%clk 0:00:17.9]} 42... h6 {[%clk 0:00:35.3]}
43. Kg3 {[%clk 0:00:18.3]} 43... Rd4 {[%clk 0:00:34]} 44. Bb7 {[%clk 0:00:17.1]}
44... Rd3+ {[%clk 0:00:32.3]} 45. Kg2 {[%clk 0:00:17.5]} 45... e3 {[%clk
0:00:32.4]} 46. f3 {[%clk 0:00:17.8]} 46... Rd2+ {[%clk 0:00:32]} 47. Kf1 {[%clk
0:00:18.5]} 47... g5 {[%clk 0:00:30.9]} 48. h5 {[%clk 0:00:18.7]} 48... Ke6
{[%clk 0:00:31.2]} 49. Ba6 {[%clk 0:00:19.2]} 49... Kd6 {[%clk 0:00:31.7]} 50.
Bb5 {[%clk 0:00:19.7]} 50... e4 {[%clk 0:00:31.8]} 51. fxe4 {[%clk 0:00:19.8]}
51... Ke5 {[%clk 0:00:32.7]} 52. Be2 {[%clk 0:00:19.9]} 52... Kxe4 {[%clk
0:00:32.7]} 53. Ke1 {[%clk 0:00:20.8]} 53... Kf4 {[%clk 0:00:32.6]} 54. Bd1
{[%clk 0:00:19.8]} 54... Rxd1+ {[%clk 0:00:32]} 0-1